[Event "Titled Tuesday Blitz October 11 Late 2022"]
[White "Melkumyan, Hrant"]
[Black "Carlsen, Magnus"]
[WhiteFideId "13302485"]
[BlackFideId "1503014"]
[WhiteElo "2604"]
[BlackElo "2830"]
[Result "0-1"]
[Round "08"]
[TimeControl "180+1"]
[Date "2022.10.11"]
[WhiteClock "0:00:01"]
[BlackClock "0:01:45"]

1. Nf3 {[%clk 0:03:00]}  h6 {[%clk 0:02:59]} 2. d4 {[%clk 0:03:00]}  g5 {[%clk 0:02:58]} 3. c4 {[%clk 0:03:00]}  Bg7 {[%clk 0:02:58]} 4. Nc3 {[%clk 0:03:00]}  d6 {[%clk 0:02:57]} 5. e4 {[%clk 0:02:57]}  g4 {[%clk 0:02:54]} 6. Ng1 {[%clk 0:02:55]}  h5 {[%clk 0:02:53]} 7. Be3 {[%clk 0:02:53]}  Nc6 {[%clk 0:02:52]} 8. h3 {[%clk 0:02:43]}  f5 {[%clk 0:02:46]} 9. hxg4 {[%clk 0:02:41]}  hxg4 {[%clk 0:02:46]} 10. Rxh8 {[%clk 0:02:40]}  Bxh8 {[%clk 0:02:46]} 11. exf5 {[%clk 0:02:32]}  Bxf5 {[%clk 0:02:46]} 12. Bd3 {[%clk 0:02:31]}  Qd7 {[%clk 0:02:46]} 13. Nge2 {[%clk 0:02:31]}  Nf6 {[%clk 0:02:44]} 14. Ng3 {[%clk 0:02:26]}  Bxd3 {[%clk 0:02:44]} 15. Qxd3 {[%clk 0:02:26]}  O-O-O {[%clk 0:02:44]} 16. O-O-O {[%clk 0:02:26]}  d5 {[%clk 0:02:44]} 17. c5 {[%clk 0:02:19]}  e5 {[%clk 0:02:42]} 18. dxe5 {[%clk 0:01:57]}  Nxe5 {[%clk 0:02:41]} 19. Qf5 {[%clk 0:01:57]}  Qxf5 {[%clk 0:02:31]} 20. Nxf5 {[%clk 0:01:57]}  c6 {[%clk 0:02:31]} 21. Bd4 {[%clk 0:01:46]}  Nfd7 {[%clk 0:02:26]} 22. Ne2 {[%clk 0:01:38]}  Rf8 {[%clk 0:02:20]} 23. Neg3 {[%clk 0:01:37]}  Bf6 {[%clk 0:02:17]} 24. Kb1 {[%clk 0:01:26]}  a5 {[%clk 0:02:16]} 25. Rh1 {[%clk 0:01:09]}  Nd3 {[%clk 0:02:12]} 26. Bxf6 {[%clk 0:00:59]}  Nxf6 {[%clk 0:02:09]} 27. Rh6 {[%clk 0:00:35]}  Nxc5 {[%clk 0:02:09]} 28. Ne7+ {[%clk 0:00:31]}  Kc7 {[%clk 0:02:04]} 29. Ng6 {[%clk 0:00:23]}  Re8 {[%clk 0:02:04]} 30. Nf4 {[%clk 0:00:21]}  Nfe4 {[%clk 0:02:02]} 31. Nxe4 {[%clk 0:00:13]}  Nxe4 {[%clk 0:02:01]} 32. Nd3 {[%clk 0:00:10]}  Nxf2 {[%clk 0:02:01]} 33. Nc5 {[%clk 0:00:06]}  Re7 {[%clk 0:01:55]} 34. Rg6 {[%clk 0:00:05]}  Kb6 {[%clk 0:01:54]} 35. Na4+ {[%clk 0:00:03]}  Kb5 {[%clk 0:01:54]} 36. Nc3+ {[%clk 0:00:03]}  Kc4 {[%clk 0:01:51]} 37. Kc2 {[%clk 0:00:03]}  d4 {[%clk 0:01:51]} 38. b3+ {[%clk 0:00:03]}  Kb4 {[%clk 0:01:51]} 39. Nb1 {[%clk 0:00:02]}  Re2+ {[%clk 0:01:48]} 40. Kc1 {[%clk 0:00:02]}  Rxa2 {[%clk 0:01:45]} 41. Rf6 {[%clk 0:00:01]} 0-1


[Site "https://www.chess.com"]

[Event "Titled Tuesday Blitz October 11 Late 2022"]
[White "Nasuta, Grzegorz"]
[Black "Hnydiuk, Aleksander"]
[WhiteFideId "1141686"]
[BlackFideId "1109057"]
[WhiteElo "2699"]
[BlackElo "2550"]
[Result "1-0"]
[Round "08"]
[TimeControl "180+1"]
[Date "2022.10.12"]
[WhiteClock "0:00:51"]
[BlackClock "0:00:04"]

1. e4 {[%clk 0:03:00]}  c6 {[%clk 0:02:59]} 2. Nc3 {[%clk 0:02:56]}  d5 {[%clk 0:03:00]} 3. Qe2 {[%clk 0:02:56]}  d4 {[%clk 0:02:59]} 4. Nd1 {[%clk 0:02:55]}  e5 {[%clk 0:03:00]} 5. g3 {[%clk 0:02:54]}  c5 {[%clk 0:02:59]} 6. Bg2 {[%clk 0:02:54]}  Nc6 {[%clk 0:02:59]} 7. d3 {[%clk 0:02:55]}  Bd6 {[%clk 0:02:56]} 8. f4 {[%clk 0:02:55]}  Nf6 {[%clk 0:02:44]} 9. Nf3 {[%clk 0:02:52]}  O-O {[%clk 0:02:42]} 10. Nf2 {[%clk 0:02:50]}  b5 {[%clk 0:02:38]} 11. f5 {[%clk 0:02:36]}  Nd7 {[%clk 0:02:34]} 12. g4 {[%clk 0:02:35]}  c4 {[%clk 0:02:22]} 13. g5 {[%clk 0:02:32]}  Nc5 {[%clk 0:02:09]} 14. h4 {[%clk 0:02:29]}  a5 {[%clk 0:02:06]} 15. h5 {[%clk 0:02:29]}  Ba6 {[%clk 0:01:58]} 16. g6 {[%clk 0:02:04]}  h6 {[%clk 0:01:48]} 17. Bxh6 {[%clk 0:02:04]}  gxh6 {[%clk 0:01:35]} 18. Qd2 {[%clk 0:01:42]}  fxg6 {[%clk 0:00:39]} 19. hxg6 {[%clk 0:01:36]}  Qe7 {[%clk 0:00:15]} 20. Qxh6 {[%clk 0:01:01]}  Qg7 {[%clk 0:00:13]} 21. Qh5 {[%clk 0:00:53]}  cxd3 {[%clk 0:00:09]} 22. Ng4 {[%clk 0:00:53]}  d2+ {[%clk 0:00:05]} 23. Nxd2 {[%clk 0:00:52]}  Rfd8 {[%clk 0:00:04]} 24. f6 {[%clk 0:00:51]} 1-0


[Site "https://www.chess.com"]

[Event "Titled Tuesday Blitz October 11 Late 2022"]
[White "Noboa Silva, Kevin"]
[Black "Tarasova, Viktoriya"]
[WhiteFideId "3618471"]
[BlackFideId "4175840"]
[WhiteElo "2178"]
[BlackElo "2182"]
[Result "1-0"]
[Round "08"]
[TimeControl "180+1"]
[Date "2022.10.12"]
[WhiteClock "0:00:15"]
[BlackClock "0:00:03"]

1. d4 {[%clk 0:02:50]}  Nf6 {[%clk 0:02:59]} 2. c4 {[%clk 0:02:51]}  e6 {[%clk 0:02:59]} 3. Nc3 {[%clk 0:02:51]}  Bb4 {[%clk 0:02:59]} 4. a3 {[%clk 0:02:51]}  Bxc3+ {[%clk 0:02:59]} 5. bxc3 {[%clk 0:02:52]}  O-O {[%clk 0:02:59]} 6. f3 {[%clk 0:02:53]}  d5 {[%clk 0:02:58]} 7. e3 {[%clk 0:02:52]}  b6 {[%clk 0:02:57]} 8. cxd5 {[%clk 0:02:52]}  exd5 {[%clk 0:02:56]} 9. Bd3 {[%clk 0:02:53]}  Ba6 {[%clk 0:02:56]} 10. Ne2 {[%clk 0:02:53]}  Bxd3 {[%clk 0:02:55]} 11. Qxd3 {[%clk 0:02:54]}  c5 {[%clk 0:02:55]} 12. O-O {[%clk 0:02:54]}  Re8 {[%clk 0:02:54]} 13. Ng3 {[%clk 0:02:51]}  Nc6 {[%clk 0:02:55]} 14. Bb2 {[%clk 0:02:49]}  h5 {[%clk 0:02:54]} 15. Nh1 {[%clk 0:02:44]}  Qd6 {[%clk 0:02:53]} 16. Nf2 {[%clk 0:02:42]}  Rad8 {[%clk 0:02:51]} 17. Rad1 {[%clk 0:02:40]}  cxd4 {[%clk 0:02:41]} 18. cxd4 {[%clk 0:02:39]}  Na5 {[%clk 0:02:41]} 19. e4 {[%clk 0:02:34]}  Nd7 {[%clk 0:02:38]} 20. Bc1 {[%clk 0:02:24]}  Rc8 {[%clk 0:02:36]} 21. e5 {[%clk 0:02:19]}  Qc6 {[%clk 0:02:34]} 22. Qf5 {[%clk 0:02:11]}  g6 {[%clk 0:02:26]} 23. Qg5 {[%clk 0:02:10]}  Nb3 {[%clk 0:02:18]} 24. Be3 {[%clk 0:01:51]}  Nf8 {[%clk 0:02:16]} 25. f4 {[%clk 0:01:44]}  Ne6 {[%clk 0:02:12]} 26. Qh6 {[%clk 0:01:40]}  Ng7 {[%clk 0:02:12]} 27. g4 {[%clk 0:01:37]}  Re6 {[%clk 0:01:51]} 28. h3 {[%clk 0:01:34]}  Qd7 {[%clk 0:01:34]} 29. Rd3 {[%clk 0:01:14]}  Na5 {[%clk 0:01:31]} 30. Nh1 {[%clk 0:01:03]}  Nc4 {[%clk 0:01:19]} 31. Ng3 {[%clk 0:00:51]}  Nxe3 {[%clk 0:01:09]} 32. Rxe3 {[%clk 0:00:50]}  Rc2 {[%clk 0:01:04]} 33. Qg5 {[%clk 0:00:44]}  Qb5 {[%clk 0:00:38]} 34. f5 {[%clk 0:00:35]}  Qb2 {[%clk 0:00:20]} 35. Ne2 {[%clk 0:00:25]}  Rxe2 {[%clk 0:00:11]} 36. Rxe2 {[%clk 0:00:25]}  Qxe2 {[%clk 0:00:11]} 37. fxe6 {[%clk 0:00:25]}  Nxe6 {[%clk 0:00:11]} 38. Qf6 {[%clk 0:00:24]}  Qe3+ {[%clk 0:00:11]} 39. Qf2 {[%clk 0:00:24]}  Qxf2+ {[%clk 0:00:04]} 40. Rxf2 {[%clk 0:00:24]}  Nxd4 {[%clk 0:00:04]} 41. gxh5 {[%clk 0:00:24]}  gxh5 {[%clk 0:00:04]} 42. Kg2 {[%clk 0:00:22]}  Ne6 {[%clk 0:00:02]} 43. Kf3 {[%clk 0:00:20]}  Kf8 {[%clk 0:00:01]} 44. h4 {[%clk 0:00:19]}  Ke7 {[%clk 0:00:02]} 45. Ke3 {[%clk 0:00:20]}  d4+ {[%clk 0:00:02]} 46. Ke4 {[%clk 0:00:19]}  Kd7 {[%clk 0:00:03]} 47. Rxf7+ {[%clk 0:00:18]}  Kc6 {[%clk 0:00:03]} 48. Rf6 {[%clk 0:00:18]}  Kd7 {[%clk 0:00:04]} 49. Rh6 {[%clk 0:00:18]}  Nc5+ {[%clk 0:00:04]} 50. Kxd4 {[%clk 0:00:18]}  Nb3+ {[%clk 0:00:04]} 51. Kd5 {[%clk 0:00:18]}  Nd2 {[%clk 0:00:04]} 52. Rh7+ {[%clk 0:00:18]}  Kd8 {[%clk 0:00:04]} 53. Rxh5 {[%clk 0:00:16]}  Ke7 {[%clk 0:00:04]} 54. Rh7+ {[%clk 0:00:16]}  Ke8 {[%clk 0:00:04]} 55. Ke6 {[%clk 0:00:16]}  Kd8 {[%clk 0:00:03]} 56. Rxa7 {[%clk 0:00:15]} 1-0


[Site "https://www.chess.com"]

[Event "Titled Tuesday Blitz October 11 Late 2022"]
[White "Pakleza, Zbigniew"]
[Black "Bortnyk, Olexandr"]
[WhiteFideId "1119290"]
[BlackFideId "14120828"]
[WhiteElo "2411"]
[BlackElo "2723"]
[Result "1-0"]
[Round "08"]
[TimeControl "180+1"]
[Date "2022.10.11"]
[WhiteClock "0:00:03"]
[BlackClock "0:00:55"]

1. d4 {[%clk 0:03:00]}  d6 {[%clk 0:03:00]} 2. Nf3 {[%clk 0:03:00]}  Nf6 {[%clk 0:03:00]} 3. Bf4 {[%clk 0:03:01]}  b6 {[%clk 0:03:00]} 4. e3 {[%clk 0:03:00]}  Bb7 {[%clk 0:03:00]} 5. h3 {[%clk 0:03:01]}  Nbd7 {[%clk 0:03:01]} 6. Be2 {[%clk 0:03:01]}  e6 {[%clk 0:03:02]} 7. c4 {[%clk 0:03:00]}  a6 {[%clk 0:03:02]} 8. Nc3 {[%clk 0:03:01]}  Be7 {[%clk 0:03:02]} 9. Rc1 {[%clk 0:03:01]}  h6 {[%clk 0:03:03]} 10. a3 {[%clk 0:03:00]}  Ra7 {[%clk 0:03:03]} 11. b4 {[%clk 0:02:56]}  Qa8 {[%clk 0:03:03]} 12. Bh2 {[%clk 0:02:51]}  O-O {[%clk 0:03:02]} 13. O-O {[%clk 0:02:50]}  Ne4 {[%clk 0:03:02]} 14. Nxe4 {[%clk 0:02:48]}  Bxe4 {[%clk 0:03:03]} 15. Ne1 {[%clk 0:02:40]}  a5 {[%clk 0:02:57]} 16. b5 {[%clk 0:02:37]}  f5 {[%clk 0:02:54]} 17. Bf3 {[%clk 0:02:31]}  Qe8 {[%clk 0:02:52]} 18. Bxe4 {[%clk 0:02:27]}  fxe4 {[%clk 0:02:53]} 19. Qg4 {[%clk 0:02:19]}  Qf7 {[%clk 0:02:18]} 20. Qxe4 {[%clk 0:02:17]}  a4 {[%clk 0:02:07]} 21. Qc2 {[%clk 0:02:01]}  Nf6 {[%clk 0:02:03]} 22. Nd3 {[%clk 0:01:59]}  g5 {[%clk 0:01:57]} 23. Nb4 {[%clk 0:01:58]}  Raa8 {[%clk 0:01:54]} 24. Nc6 {[%clk 0:01:56]}  g4 {[%clk 0:01:54]} 25. hxg4 {[%clk 0:01:31]}  Nxg4 {[%clk 0:01:55]} 26. Nxe7+ {[%clk 0:01:31]}  Qxe7 {[%clk 0:01:52]} 27. Qg6+ {[%clk 0:01:31]}  Qg7 {[%clk 0:01:52]} 28. Qxg7+ {[%clk 0:01:31]}  Kxg7 {[%clk 0:01:53]} 29. c5 {[%clk 0:01:22]}  Nxh2 {[%clk 0:01:44]} 30. Kxh2 {[%clk 0:01:23]}  dxc5 {[%clk 0:01:45]} 31. dxc5 {[%clk 0:01:24]}  Ra5 {[%clk 0:01:40]} 32. cxb6 {[%clk 0:01:11]}  cxb6 {[%clk 0:01:41]} 33. Rc4 {[%clk 0:01:11]}  Rf5 {[%clk 0:01:39]} 34. f4 {[%clk 0:00:40]}  Rh5+ {[%clk 0:01:32]} 35. Kg3 {[%clk 0:00:39]}  Rhxb5 {[%clk 0:01:33]} 36. Rc6 {[%clk 0:00:39]}  Kf7 {[%clk 0:01:27]} 37. Rd1 {[%clk 0:00:27]}  Rb3 {[%clk 0:01:24]} 38. Kf3 {[%clk 0:00:27]}  Rc5 {[%clk 0:01:23]} 39. Rd7+ {[%clk 0:00:20]}  Kf6 {[%clk 0:01:21]} 40. Rxc5 {[%clk 0:00:12]}  bxc5 {[%clk 0:01:22]} 41. Rc7 {[%clk 0:00:13]}  Rc3 {[%clk 0:01:19]} 42. g4 {[%clk 0:00:12]}  Rxa3 {[%clk 0:01:17]} 43. Rxc5 {[%clk 0:00:11]}  Ra1 {[%clk 0:01:18]} 44. Ra5 {[%clk 0:00:05]}  a3 {[%clk 0:01:18]} 45. Ra6 {[%clk 0:00:04]}  a2 {[%clk 0:01:08]} 46. Ke4 {[%clk 0:00:05]}  Ke7 {[%clk 0:01:09]} 47. Ke5 {[%clk 0:00:02]}  Kd7 {[%clk 0:01:09]} 48. Ra7+ {[%clk 0:00:02]}  Kc6 {[%clk 0:01:09]} 49. e4 {[%clk 0:00:02]}  Kb6 {[%clk 0:01:05]} 50. Ra8 {[%clk 0:00:02]}  Kc5 {[%clk 0:01:05]} 51. Kxe6 {[%clk 0:00:02]}  Rf1 {[%clk 0:01:06]} 52. f5 {[%clk 0:00:02]}  Rf4 {[%clk 0:01:07]} 53. Rxa2 {[%clk 0:00:02]}  Rxe4+ {[%clk 0:01:08]} 54. Kf6 {[%clk 0:00:02]}  Rxg4 {[%clk 0:01:08]} 55. Rh2 {[%clk 0:00:03]}  Ra4 {[%clk 0:01:05]} 56. Rxh6 {[%clk 0:00:03]}  Kd5 {[%clk 0:01:05]} 57. Kg5 {[%clk 0:00:01]}  Ra1 {[%clk 0:01:02]} 58. Re6 {[%clk 0:00:01]}  Rh1 {[%clk 0:01:03]} 59. Kf6 {[%clk 0:00:02]}  Rh6+ {[%clk 0:01:03]} 60. Kf7 {[%clk 0:00:02]}  Rh7+ {[%clk 0:01:01]} 61. Kg6 {[%clk 0:00:02]}  Rh1 {[%clk 0:01:02]} 62. Re2 {[%clk 0:00:03]}  Rg1+ {[%clk 0:00:53]} 63. Kf7 {[%clk 0:00:03]}  Kd6 {[%clk 0:00:54]} 64. f6 {[%clk 0:00:03]}  Re1 {[%clk 0:00:55]} 65. Rxe1 {[%clk 0:00:03]} 1-0


[Site "https://www.chess.com"]

[Event "Titled Tuesday Blitz October 11 Late 2022"]
[White "Reprintsev, Alexander"]
[Black "Prydun, Andriy"]
[WhiteFideId "14100541"]
[BlackFideId "14145898"]
[WhiteElo "2230"]
[BlackElo "2163"]
[Result "0-1"]
[Round "08"]
[TimeControl "180+1"]
[Date "2022.10.12"]
[WhiteClock "0:00:09"]
[BlackClock "0:00:14"]

1. e4 {[%clk 0:03:00]}  c6 {[%clk 0:02:59]} 2. Nc3 {[%clk 0:02:59]}  d5 {[%clk 0:02:58]} 3. Nf3 {[%clk 0:02:59]}  Bg4 {[%clk 0:02:58]} 4. h3 {[%clk 0:02:58]}  Bxf3 {[%clk 0:02:58]} 5. Qxf3 {[%clk 0:02:57]}  e6 {[%clk 0:02:59]} 6. b3 {[%clk 0:02:57]}  Nd7 {[%clk 0:02:58]} 7. exd5 {[%clk 0:02:55]}  exd5 {[%clk 0:02:55]} 8. Bb2 {[%clk 0:02:50]}  Ngf6 {[%clk 0:02:54]} 9. O-O-O {[%clk 0:02:50]}  Be7 {[%clk 0:02:53]} 10. g4 {[%clk 0:02:49]}  O-O {[%clk 0:02:51]} 11. g5 {[%clk 0:02:48]}  Ne8 {[%clk 0:02:49]} 12. h4 {[%clk 0:02:48]}  Nc5 {[%clk 0:02:44]} 13. Re1 {[%clk 0:02:46]}  Ne6 {[%clk 0:02:43]} 14. Bh3 {[%clk 0:02:41]}  N8c7 {[%clk 0:02:40]} 15. Qg4 {[%clk 0:02:34]}  Qd6 {[%clk 0:02:35]} 16. Ne2 {[%clk 0:02:26]}  a5 {[%clk 0:02:28]} 17. f4 {[%clk 0:02:25]}  a4 {[%clk 0:02:27]} 18. f5 {[%clk 0:02:25]}  axb3 {[%clk 0:02:00]} 19. axb3 {[%clk 0:01:50]}  Ra2 {[%clk 0:01:41]} 20. fxe6 {[%clk 0:01:46]}  Rxb2 {[%clk 0:01:41]} 21. Kxb2 {[%clk 0:01:44]}  Qa3+ {[%clk 0:01:41]} 22. Kc3 {[%clk 0:01:43]}  Nxe6 {[%clk 0:01:16]} 23. Qa4 {[%clk 0:01:38]}  d4+ {[%clk 0:01:11]} 24. Nxd4 {[%clk 0:01:31]}  Qc5+ {[%clk 0:00:40]} 25. Kb2 {[%clk 0:01:12]}  Nxd4 {[%clk 0:00:40]} 26. Rxe7 {[%clk 0:01:07]}  Qxc2+ {[%clk 0:00:39]} 27. Ka3 {[%clk 0:01:07]}  Nb5+ {[%clk 0:00:39]} 28. Kb4 {[%clk 0:00:48]}  Qxd2+ {[%clk 0:00:38]} 29. Kc5 {[%clk 0:00:47]}  Qd6+ {[%clk 0:00:34]} 30. Kb6 {[%clk 0:00:47]}  Qxe7 {[%clk 0:00:35]} 31. Qf4 {[%clk 0:00:22]}  Ra8 {[%clk 0:00:25]} 32. Ra1 {[%clk 0:00:11]}  Rxa1 {[%clk 0:00:22]} 33. Qb8+ {[%clk 0:00:11]}  Qf8 {[%clk 0:00:22]} 34. Qxb7 {[%clk 0:00:11]}  Qd8+ {[%clk 0:00:20]} 35. Kxc6 {[%clk 0:00:11]}  Nd4+ {[%clk 0:00:18]} 36. Kc5 {[%clk 0:00:10]}  Rc1+ {[%clk 0:00:16]} 37. Kb4 {[%clk 0:00:10]}  Nc6+ {[%clk 0:00:14]} 38. Kb5 {[%clk 0:00:09]}  Qa5# {[%clk 0:00:14]} 0-1


[Site "https://www.chess.com"]

[Event "Titled Tuesday Blitz October 11 Late 2022"]
[White "Roberson, Peter T"]
[Black "Averjanov, Alexey"]
[WhiteFideId "412384"]
[BlackFideId "14109867"]
[WhiteElo "2503"]
[BlackElo "2659"]
[Result "0-1"]
[Round "08"]
[TimeControl "180+1"]
[Date "2022.10.12"]
[WhiteClock "0:00:01"]
[BlackClock "0:00:48"]

1. d4 {[%clk 0:03:00]}  d5 {[%clk 0:03:00]} 2. c4 {[%clk 0:03:00]}  dxc4 {[%clk 0:03:00]} 3. Nf3 {[%clk 0:03:00]}  Nf6 {[%clk 0:03:01]} 4. e3 {[%clk 0:03:01]}  e6 {[%clk 0:03:01]} 5. Bxc4 {[%clk 0:03:01]}  a6 {[%clk 0:03:02]} 6. O-O {[%clk 0:03:01]}  b5 {[%clk 0:03:03]} 7. Be2 {[%clk 0:03:01]}  Bb7 {[%clk 0:03:03]} 8. a4 {[%clk 0:03:00]}  b4 {[%clk 0:03:04]} 9. Nbd2 {[%clk 0:03:00]}  Nbd7 {[%clk 0:03:05]} 10. b3 {[%clk 0:03:00]}  c5 {[%clk 0:03:06]} 11. Bb2 {[%clk 0:02:59]}  Be7 {[%clk 0:03:06]} 12. Rc1 {[%clk 0:02:59]}  O-O {[%clk 0:03:06]} 13. Nc4 {[%clk 0:02:58]}  Qc7 {[%clk 0:03:06]} 14. Nfe5 {[%clk 0:02:58]}  Rfd8 {[%clk 0:03:06]} 15. Bf3 {[%clk 0:02:57]}  Rac8 {[%clk 0:03:05]} 16. Qe2 {[%clk 0:02:53]}  h6 {[%clk 0:03:04]} 17. Rfd1 {[%clk 0:02:52]}  Bd5 {[%clk 0:03:02]} 18. Nxd7 {[%clk 0:02:46]}  Rxd7 {[%clk 0:02:54]} 19. e4 {[%clk 0:02:41]}  Ba8 {[%clk 0:02:50]} 20. dxc5 {[%clk 0:02:11]}  Rxd1+ {[%clk 0:02:46]} 21. Rxd1 {[%clk 0:02:10]}  Qxc5 {[%clk 0:02:43]} 22. Bd4 {[%clk 0:02:08]}  Qg5 {[%clk 0:02:33]} 23. Nb6 {[%clk 0:02:03]}  Rd8 {[%clk 0:02:28]} 24. Be3 {[%clk 0:01:52]}  Qe5 {[%clk 0:01:39]} 25. Rxd8+ {[%clk 0:01:49]}  Bxd8 {[%clk 0:01:40]} 26. Nxa8 {[%clk 0:01:49]}  Nxe4 {[%clk 0:01:37]} 27. Qd1 {[%clk 0:01:06]}  Be7 {[%clk 0:01:35]} 28. Bxe4 {[%clk 0:01:03]}  Qxe4 {[%clk 0:01:34]} 29. Nb6 {[%clk 0:01:04]}  Bd6 {[%clk 0:01:24]} 30. Nc4 {[%clk 0:01:03]}  Be7 {[%clk 0:01:24]} 31. f3 {[%clk 0:00:57]}  Qf5 {[%clk 0:01:22]} 32. Bf2 {[%clk 0:00:53]}  h5 {[%clk 0:01:20]} 33. h3 {[%clk 0:00:52]}  h4 {[%clk 0:01:18]} 34. Qd7 {[%clk 0:00:38]}  Qb1+ {[%clk 0:01:15]} 35. Kh2 {[%clk 0:00:38]}  Qxb3 {[%clk 0:01:12]} 36. Ne5 {[%clk 0:00:12]}  Qc3 {[%clk 0:01:02]} 37. Bd4 {[%clk 0:00:10]}  Qc1 {[%clk 0:00:59]} 38. Qe8+ {[%clk 0:00:07]}  Kh7 {[%clk 0:00:57]} 39. Qxf7 {[%clk 0:00:08]}  Qg5 {[%clk 0:00:52]} 40. Ng4 {[%clk 0:00:04]}  Bd6+ {[%clk 0:00:52]} 41. Kh1 {[%clk 0:00:02]}  e5 {[%clk 0:00:52]} 42. Bg1 {[%clk 0:00:02]}  e4 {[%clk 0:00:49]} 43. Qd5 {[%clk 0:00:01]}  Qxd5 {[%clk 0:00:48]} 0-1


[Site "https://www.chess.com"]

[Event "Titled Tuesday Blitz October 11 Late 2022"]
[White "Rorrer, Grayson"]
[Black "Arnold, Ken"]
[WhiteFideId "30944996"]
[BlackFideId "2056836"]
[WhiteElo "2130"]
[BlackElo "2356"]
[Result "1-0"]
[Round "08"]
[TimeControl "180+1"]
[Date "2022.10.12"]
[WhiteClock "0:01:04"]
[BlackClock "0:00:01"]

1. e4 {[%clk 0:03:00]}  c6 {[%clk 0:02:59]} 2. d4 {[%clk 0:02:49]}  d5 {[%clk 0:02:58]} 3. exd5 {[%clk 0:02:50]}  cxd5 {[%clk 0:02:58]} 4. Bd3 {[%clk 0:02:50]}  Nf6 {[%clk 0:02:58]} 5. h3 {[%clk 0:02:50]}  Nc6 {[%clk 0:02:59]} 6. c3 {[%clk 0:02:50]}  e5 {[%clk 0:02:58]} 7. dxe5 {[%clk 0:02:51]}  Nxe5 {[%clk 0:02:58]} 8. Nf3 {[%clk 0:02:52]}  Nxd3+ {[%clk 0:02:57]} 9. Qxd3 {[%clk 0:02:53]}  Be7 {[%clk 0:02:56]} 10. Be3 {[%clk 0:02:52]}  O-O {[%clk 0:02:56]} 11. Nbd2 {[%clk 0:02:52]}  a6 {[%clk 0:02:55]} 12. O-O {[%clk 0:02:53]}  Bd7 {[%clk 0:02:55]} 13. Rfe1 {[%clk 0:02:54]}  Bb5 {[%clk 0:02:54]} 14. Qc2 {[%clk 0:02:53]}  Rc8 {[%clk 0:02:45]} 15. Rad1 {[%clk 0:02:53]}  Re8 {[%clk 0:02:36]} 16. Nd4 {[%clk 0:02:53]}  Bc6 {[%clk 0:02:34]} 17. Nf5 {[%clk 0:02:53]}  g6 {[%clk 0:02:30]} 18. Nxe7+ {[%clk 0:02:45]}  Qxe7 {[%clk 0:02:29]} 19. Nf3 {[%clk 0:02:42]}  Ne4 {[%clk 0:02:25]} 20. Nd4 {[%clk 0:02:41]}  Qf6 {[%clk 0:02:04]} 21. f3 {[%clk 0:02:37]}  Nd6 {[%clk 0:02:00]} 22. Nxc6 {[%clk 0:02:37]}  bxc6 {[%clk 0:01:59]} 23. Bd4 {[%clk 0:02:38]}  Qg5 {[%clk 0:01:51]} 24. Qf2 {[%clk 0:02:35]}  Nf5 {[%clk 0:01:45]} 25. Bc5 {[%clk 0:02:33]}  h5 {[%clk 0:01:43]} 26. Re2 {[%clk 0:02:28]}  Ng3 {[%clk 0:01:24]} 27. Re3 {[%clk 0:02:20]}  h4 {[%clk 0:01:10]} 28. Rde1 {[%clk 0:02:00]}  Rxe3 {[%clk 0:01:07]} 29. Bxe3 {[%clk 0:01:57]}  Qf5 {[%clk 0:01:02]} 30. Bd4 {[%clk 0:01:51]}  Qd7 {[%clk 0:00:49]} 31. Bf6 {[%clk 0:01:49]}  Re8 {[%clk 0:00:47]} 32. Bxh4 {[%clk 0:01:47]}  Nf5 {[%clk 0:00:45]} 33. Bf6 {[%clk 0:01:46]}  Re6 {[%clk 0:00:44]} 34. Bg5 {[%clk 0:01:37]}  c5 {[%clk 0:00:37]} 35. Rxe6 {[%clk 0:01:20]}  Qxe6 {[%clk 0:00:37]} 36. g4 {[%clk 0:01:17]}  Nd6 {[%clk 0:00:22]} 37. Qxc5 {[%clk 0:01:13]}  Nc4 {[%clk 0:00:15]} 38. b3 {[%clk 0:01:08]}  Qe1+ {[%clk 0:00:13]} 39. Kg2 {[%clk 0:01:07]}  Nd2 {[%clk 0:00:11]} 40. Qf2 {[%clk 0:01:07]}  Qxf2+ {[%clk 0:00:06]} 41. Kxf2 {[%clk 0:01:07]}  Nb1 {[%clk 0:00:06]} 42. Bf6 {[%clk 0:01:07]}  Kf8 {[%clk 0:00:05]} 43. h4 {[%clk 0:01:08]}  Ke8 {[%clk 0:00:05]} 44. Ke2 {[%clk 0:01:07]}  Kd7 {[%clk 0:00:05]} 45. Kd3 {[%clk 0:01:06]}  Ke6 {[%clk 0:00:04]} 46. Bd4 {[%clk 0:01:07]}  f5 {[%clk 0:00:04]} 47. Bc5 {[%clk 0:01:02]}  fxg4 {[%clk 0:00:03]} 48. fxg4 {[%clk 0:01:03]}  d4 {[%clk 0:00:01]} 49. cxd4 {[%clk 0:01:03]}  Kd5 {[%clk 0:00:01]} 50. Kc2 {[%clk 0:01:04]} 1-0


[Site "https://www.chess.com"]